bitfinex/quotes_ETHUSD_20250730
["timestamp","ask_amount","ask_price","bid_price","bid_amount"]
[1753875526920,1.08,3765.6,3765.4,4.145]
[1753875527324,3.60290372,3765.5,3765.1,4.145]
[1753875527524,0.1328,3765.2,3765.1,4.145]
[1753875527764,1.08,3765.2,3765.1,4.145]
[1753875528729,1.08,3765.2,3764.9,4.145]
[1753875528951,0.6262,3765.2,3764.9,4.145]
[1753875529154,0.4538,3765.1,3764.9,4.145]
[1753875529359,0.4538,3765.0,3764.9,4.145]
[1753875529555,0.4538,3765.0,3764.9,6.80111304]
[1753875529774,0.1328,3765.2,3765.0,2.65603618]
[1753875530074,0.5866,3765.2,3765.0,2.65603618]
[1753875530272,0.1328,3765.2,3765.1,2.65597195]
[1753875530571,0.9031,3765.4,3764.9,4.145]
[1753875530874,0.4538,3765.3,3765.1,4.145]
[1753875531174,0.4538,3765.2,3765.1,4.145]
[1753875532244,0.1328,3765.6,3765.1,4.2778]
[1753875532435,0.9472,3765.5,3765.1,4.2778]
[1753875532770,0.9472,3765.4,3765.1,4.2778]
[1753875533074,1.08,3765.3,3765.1,4.145]
[1753875533261,0.4538,3765.2,3765.1,4.145]
[1753875533636,0.9472,3765.2,3765.1,4.145]
[1753875534176,1.7442,3765.2,3765.1,4.145]
[1753875536362,2.19747163,3765.2,3764.4,2.65644767]
[1753875536575,0.1328,3765.1,3764.6,0.1328]
[1753875536884,0.9472,3765.0,3764.7,4.144]
[1753875537065,0.4934,3765.0,3764.7,4.144]
[1753875537269,0.4538,3764.9,3764.7,4.144]
[1753875539362,0.1328,3765.1,3764.7,4.144]
[1753875539565,0.4538,3764.8,3764.7,4.144]
[1753875540770,0.5632,3765.1,3764.7,4.144]
[1753875540974,0.4304,3765.0,3764.7,4.144]
[1753875541169,0.55,3765.0,3764.8,4.143]
[1753875541396,0.5632,3764.9,3764.8,4.143]
[1753875544627,1.0257,3764.9,3764.7,4.143]
[1753875544778,0.5953,3764.9,3764.5,4.143]
[1753875544983,0.4304,3764.8,3764.5,4.143]
[1753875545283,0.4304,3764.8,3764.5,4.617]
[1753875545619,0.1328,3764.9,3764.7,2.65624098]
[1753875545829,0.797,3765.2,3764.8,4.142]
[1753875546012,0.1328,3765.2,3764.9,2.65607196]
[1753875546187,0.1328,3765.2,3764.9,3.12587196]
[1753875546383,0.1328,3765.2,3765.0,3.13000426]
[1753875546795,0.1328,3765.2,3764.9,0.4698]
[1753875546796,0.1328,3765.2,3765.1,0.474]
[1753875546991,0.37837664,3765.2,3765.1,0.474]
[1753875547231,0.37837664,3765.2,3764.8,7.27217272]
[1753875547429,0.1328,3765.2,3764.8,6.79817272]
[1753875547606,0.1328,3765.2,3764.9,0.474]
[1753875547808,0.1328,3765.2,3764.9,2.65610576]
[1753875548002,0.1328,3765.2,3765.0,4.616]
[1753875548233,0.24562931,3765.1,3765.0,4.142]
[1753875548531,0.4304,3765.1,3765.0,4.142]
[1753875548896,0.9804,3765.4,3765.0,4.142]
[1753875549115,0.80888831,3765.3,3765.0,4.142]
[1753875549315,0.24568831,3765.2,3765.0,4.142]
[1753875549757,0.5632,3765.3,3765.0,4.142]
[1753875550062,0.55,3764.8,3764.1,0.7784]
[1753875550270,0.55,3764.8,3764.3,2.78932648]
[1753875550615,0.55,3764.8,3764.4,0.474]
[1753875550815,0.6828,3764.8,3764.5,4.142]
[1753875551014,0.6828,3764.8,3764.5,4.616]
[1753875552148,0.55,3764.6,3763.9,2.65675432]
[1753875552358,0.1328,3764.3,3764.0,4.141]
[1753875552674,0.1328,3764.3,3764.0,4.615]
[1753875553052,0.1328,3764.3,3764.1,0.474]
[1753875553443,0.55,3764.6,3764.2,3.60040698]
[1753875553625,0.6828,3764.6,3764.2,3.60039644]
[1753875553826,0.6828,3764.6,3764.3,0.474]
[1753875554100,0.6828,3764.6,3764.4,0.474]
[1753875554750,0.6828,3764.6,3764.5,0.474]
[1753875554954,0.8307,3765.3,3764.5,1.98358126]
[1753875555156,0.37865243,3765.2,3764.8,2.65613318]
[1753875555350,0.24585243,3765.1,3764.9,4.615]
[1753875556170,0.24585243,3765.0,3764.9,4.615]
[1753875557066,0.24585243,3765.0,3764.9,7.27111304]
[1753875557365,0.24585243,3765.0,3764.9,8.52411304]
[1753875557669,0.24585243,3765.0,3764.9,9.64214929]
[1753875557852,0.24585243,3765.2,3765.1,2.65597195]
[1753875558059,0.24585243,3765.2,3765.1,7.74077195]
[1753875558060,0.24621978,3765.2,3765.1,7.74077195]
[1753875558432,0.24621978,3765.2,3765.1,5.0848]
[1753875558868,0.55,3765.1,3764.8,0.1328]
[1753875559069,0.67661978,3765.0,3764.9,4.14]
[1753875559290,0.24621978,3765.0,3764.9,4.14]
[1753875559796,0.1328,3765.2,3764.9,7.73991304]
[1753875559959,0.8256,3765.6,3764.9,7.73991304]
[1753875559960,0.24627196,3765.1,3765.0,3.26284249]
[1753875560163,0.24627823,3765.4,3765.1,2.65595964]
[1753875560378,0.2462782,3765.3,3765.2,7.26990141]
[1753875560605,0.2462782,3765.3,3765.2,7.73970141]
[1753875560754,0.2462782,3765.3,3765.2,4.7468]
[1753875561095,0.2462782,3765.3,3765.2,7.40270141]
[1753875561250,0.2462782,3765.3,3765.2,7.87250141]
[1753875561446,0.24626661,3765.3,3765.2,5.2166]
[1753875561651,0.24626661,3765.3,3765.2,7.87250141]
[1753875562051,0.24626661,3765.3,3765.2,8.50115145]
[1753875562496,0.001,3765.7,3765.5,2.65568981]
[1753875562804,0.24626228,3765.6,3765.5,6.79568981]
[1753875563149,0.24626228,3765.6,3765.5,7.87228981]
[1753875563356,0.001,3765.7,3765.6,3.44561929]
[1753875563592,0.24719706,3765.7,3765.6,6.27396512]
[1753875563749,0.24719706,3765.7,3765.6,5.33016512]
[1753875564086,0.24719706,3765.7,3765.6,6.27396512]
[1753875564467,0.001,3765.7,3765.6,6.27396512]
[1753875569463,1e-08,3765.7,3765.6,6.27396512]
[1753875569979,0.04,3765.9,3765.8,0.7663]
[1753875570304,0.04,3765.9,3765.8,14.22678609]
[1753875570461,0.04,3765.9,3765.8,15.16508609]
[1753875571084,0.04,3765.9,3765.8,14.70568609]
[1753875571395,0.04,3765.9,3765.8,15.16508609]
[1753875575010,0.04,3765.9,3765.8,13.49451186]
[1753875576296,0.041,3765.9,3765.8,13.49451186]
[1753875576703,0.001,3766.2,3766.1,2.65526672]
[1753875576902,0.001,3766.2,3766.1,11.74024782]
[1753875577079,0.001,3766.2,3766.1,12.67854782]
[1753875581487,1e-08,3766.3,3766.2,3.40859621]
[1753875581733,0.001,3766.4,3766.3,2.65512572]
[1753875582038,0.001,3766.8,3766.7,3.47294376]
[1753875582185,0.001,3766.8,3766.7,10.809147]
[1753875582383,0.001,3766.8,3766.7,11.880247]
[1753875582819,0.001,3766.8,3766.7,7.745247]
[1753875583031,0.46,3766.8,3766.7,2.78764376]
[1753875583229,0.9288,3766.8,3766.7,6.92264376]
[1753875583399,0.001,3766.8,3766.7,10.123847]
[1753875583796,0.001,3766.8,3766.7,5.988847]
[1753875584039,0.001,3766.8,3766.7,10.122847]
[1753875584937,0.46,3766.8,3766.7,6.92164376]
[1753875585145,0.46,3766.8,3766.7,2.78764376]
[1753875585346,0.9288,3766.8,3766.7,6.78884376]
[1753875585705,0.46,3766.8,3766.7,6.78884376]
[1753875585906,0.001,3766.8,3766.7,6.78884376]
[1753875587840,0.001,3766.8,3766.7,8.593411]
[1753875588339,0.001,3766.8,3766.7,9.052811]
[1753875588920,0.001,3766.8,3766.7,13.91583829]
[1753875589102,0.04,3766.9,3766.8,2.65477328]
[1753875589301,0.04,3766.9,3766.8,3.59307328]
[1753875589545,0.04,3766.9,3766.8,6.16604698]
[1753875590202,0.04,3766.9,3766.8,6.96064698]
[1753875591146,0.04,3766.9,3766.8,6.50124698]
[1753875591521,0.04,3766.9,3766.8,6.96064698]
[1753875597948,0.041,3766.9,3766.8,11.19064698]
[1753875599057,0.041,3768.9,3767.0,13.41652932]
[1753875599213,0.24594478,3768.8,3768.3,0.7587]
[1753875599417,0.041,3768.9,3768.8,2.78616446]
[1753875599712,0.041,3768.9,3768.8,7.54306446]
[1753875599941,0.041,3768.9,3768.8,9.63694232]
[1753875600217,0.5,3768.9,3768.8,6.78436446]
[1753875600544,0.041,3768.9,3768.8,7.24906446]
[1753875600954,0.041,3768.9,3768.8,7.69526446]
[1753875601139,0.001,3771.3,3769.9,0.7587]
[1753875601340,0.441,3771.1,3770.8,7.64778443]
[1753875601661,0.9638,3770.9,3770.8,4.2628]
[1753875602165,0.9638,3770.9,3770.6,2.78489457]
[1753875602447,0.9638,3770.9,3768.6,0.13326747]
[1753875602448,0.94930088,3770.8,3770.7,4.13]
[1753875602658,0.55,3770.6,3770.2,0.1328]
[1753875602820,0.55,3770.4,3770.3,4.13]
[1753875603174,0.8044,3770.5,3770.3,6.78230883]
[1753875603452,0.041,3770.9,3770.8,2.65195714]
[1753875603638,0.041,3770.9,3770.8,11.671504]
[1753875603837,0.041,3770.9,3770.8,13.67484424]
[1753875604024,0.041,3770.9,3770.8,14.12104424]
[1753875604224,0.04,3771.9,3771.2,2.65167585]
[1753875604530,0.04,3771.9,3771.2,6.78067585]
[1753875604738,0.04,3771.9,3771.2,7.37817585]
[1753875604942,0.04,3771.9,3771.8,2.65125404]
[1753875605131,0.04,3771.9,3771.8,6.78025404]
[1753875605334,0.04,3771.9,3771.8,4.2618]
[1753875605542,0.481,3771.9,3771.8,4.2618]
[1753875605761,0.9628,3771.9,3771.8,0.1328]
[1753875605958,0.55,3771.8,3771.2,4.86302729]
[1753875606162,0.55,3771.8,3770.7,4.86302729]
[1753875606163,0.55,3771.6,3770.7,4.86302729]
[1753875606353,0.55,3771.6,3771.5,0.1328]
[1753875606554,0.55,3771.6,3771.5,4.2608]
[1753875606755,1.4728,3771.6,3771.5,4.2608]
[1753875607340,0.991,3771.6,3771.5,4.2608]
[1753875607536,0.55,3771.8,3771.5,4.2608]
[1753875607834,0.55,3771.8,3771.7,2.65132433]
[1753875608062,0.55,3771.8,3771.7,6.91212433]
[1753875608370,0.04,3771.9,3771.8,2.65125404]
[1753875609072,0.04,3771.9,3771.8,3.11595404]
[1753875609934,0.04,3771.9,3771.7,9.12382729]
[1753875609935,0.04,3771.9,3771.7,11.7751349]
[1753875610167,1.4728,3771.8,3771.7,0.1328]
[1753875610469,1.4728,3771.8,3771.7,4.2598]
[1753875610682,1.4728,3771.8,3771.7,0.1328]
[1753875610888,1.88919655,3771.8,3771.7,4.127]
[1753875611032,0.55,3771.6,3770.5,12.23572729]
[1753875611227,0.55,3771.6,3771.3,0.1328]
[1753875611431,0.55,3771.4,3771.3,0.1328]
[1753875611681,1.4728,3771.4,3771.3,4.2598]
[1753875611846,1.4728,3771.4,3771.3,0.1328]
[1753875612180,0.991,3771.4,3771.3,4.2598]
[1753875612389,0.991,3771.4,3771.3,6.91140554]
[1753875612543,0.55,3771.4,3771.3,6.91140554]
[1753875612879,0.5218,3771.9,3771.3,6.91140554]
[1753875612880,0.55,3771.6,3771.5,2.6513995]
[1753875613091,0.55,3771.8,3771.5,3.1160995]
[1753875613294,0.55,3771.8,3771.7,2.65132433]
[1753875613497,0.55,3771.8,3771.7,2.78412433]
[1753875613650,0.55,3771.8,3771.7,0.1328]
[1753875614058,0.991,3771.8,3771.7,0.1328]
[1753875615701,0.991,3771.8,3771.7,4.2588]
[1753875618315,0.991,3771.8,3771.7,4.2578]
[1753875618514,0.991,3771.8,3771.7,4.125]
[1753875618515,1.4728,3771.8,3771.7,4.125]
[1753875618900,1.4728,3771.8,3771.3,0.1328]
[1753875619218,0.9228,3771.7,3771.4,4.125]
[1753875619573,0.55,3771.4,3770.8,2.65195393]
[1753875619727,0.55,3771.4,3771.2,0.1328]
[1753875619882,1.0318,3771.4,3771.3,4.125]
[1753875620223,0.55,3771.4,3771.3,4.125]
[1753875620581,0.991,3771.4,3771.2,0.1328]
[1753875620817,1.0318,3771.4,3771.3,4.125]
[1753875621428,0.991,3771.4,3771.3,4.125]
[1753875621812,0.991,3771.4,3771.1,0.1328]
[1753875622020,0.991,3771.4,3771.2,4.125]
[1753875622186,0.991,3771.3,3771.2,4.125]
[1753875622386,0.55,3771.2,3771.1,0.1328]
[1753875622613,0.991,3771.2,3771.1,4.125]
[1753875623090,0.55,3771.2,3771.1,4.125]
[1753875623292,0.55,3771.4,3771.1,4.125]
[1753875623785,0.441,3771.3,3771.0,0.1328]
[1753875624018,0.55,3771.2,3770.5,9.56011886]
[1753875624331,0.55,3771.0,3770.6,4.2578]
[1753875624534,0.55,3770.8,3770.6,4.2578]
[1753875624704,0.55,3770.8,3770.6,4.125]
[1753875625025,0.55,3770.6,3770.5,6.908]
[1753875625341,0.991,3770.6,3770.5,11.033]
[1753875625548,0.991,3770.6,3770.5,4.125]
[1753875626039,0.55,3770.5,3770.4,0.002]
[1753875626337,1.4728,3770.5,3770.4,0.002]
[1753875626743,7.49136814,3770.5,3770.4,0.002]
[1753875627035,7.93236814,3770.5,3770.4,0.002]
[1753875628251,9.00409349,3770.5,3770.4,0.002]
[1753875629269,4.3574,3770.5,3770.4,0.002]
[1753875629422,3.8074,3770.5,3770.4,0.002]
[1753875629597,4.3574,3770.5,3770.4,0.002]
[1753875630242,4.7984,3770.5,3770.4,0.002]
[1753875630458,7.45056814,3770.5,3770.4,0.002]
[1753875630663,5.2851,3770.5,3770.4,0.002]
[1753875630949,7.93726814,3770.5,3770.4,0.002]
[1753875631105,8.74425522,3770.5,3770.4,0.002]
[1753875632629,8.25755522,3770.5,3770.4,0.002]
[1753875632833,8.74425522,3770.5,3770.4,0.002]
[1753875633143,8.25755522,3770.5,3770.4,0.002]
[1753875633525,4.3574,3770.5,3770.4,0.002]
[1753875633724,7.00956814,3770.5,3770.4,0.002]
[1753875633928,7.47096814,3770.5,3770.4,0.002]
[1753875634129,5.3055,3770.5,3770.4,0.002]
[1753875634313,4.8188,3770.5,3770.4,0.002]
[1753875634512,4.84530088,3770.5,3770.4,0.002]
[1753875635275,4.8188,3770.5,3770.4,0.002]
[1753875635468,7.49746902,3770.5,3770.4,0.002]
[1753875635667,9.03456873,3770.5,3770.4,0.002]
[1753875638071,9.28014601,3770.5,3770.4,0.002]
[1753875638381,9.03456873,3770.5,3770.4,0.002]
[1753875639547,9.28000131,3770.5,3770.4,0.002]
[1753875641064,9.52734883,3770.5,3770.4,0.002]
[1753875643095,9.52730165,3770.5,3770.4,0.002]
[1753875645503,9.04060165,3770.5,3770.4,0.002]
[1753875645807,9.52730165,3770.5,3770.4,0.002]
[1753875647221,12.72417542,3770.5,3770.4,0.002]
[1753875647600,12.72417542,3770.5,3770.4,1e-08]
[1753875647786,42.72417542,3770.5,3770.4,1e-08]
[1753875650395,2.65244953,3770.1,3770.0,0.1]
[1753875650595,12.04662828,3770.1,3770.0,0.1]
[1753875650791,12.9682274,3770.1,3770.0,0.1]
[1753875650996,13.09852551,3770.1,3770.0,1e-08]
[1753875653333,6.96614211,3769.4,3769.3,0.4607]
[1753875653513,3.20308288,3769.2,3769.1,0.5007]
[1753875653718,7.46088288,3769.2,3769.1,0.04]
[1753875653934,7.46088288,3769.2,3769.1,0.5007]
[1753875654953,10.46088288,3769.2,3769.1,0.5007]
[1753875655281,11.17249199,3769.2,3769.1,0.5007]
[1753875656543,11.17249199,3769.2,3769.1,0.04]
[1753875656778,11.63389199,3769.2,3769.1,0.04]
[1753875657277,11.17249199,3769.2,3769.1,0.04]
[1753875657584,11.63389199,3769.2,3769.1,0.04]
[1753875660250,3.2036461,3768.4,3768.3,0.4377]
[1753875660582,3.55,3768.2,3768.1,0.04]
[1753875660747,6.20378695,3768.2,3768.1,0.04]
[1753875660950,6.33658695,3768.2,3768.1,0.04]
[1753875661184,6.33658695,3768.2,3768.1,0.5027]
[1753875661353,6.33658695,3768.2,3768.1,0.9321]
[1753875661902,3.6828,3768.2,3768.1,0.9321]
[1753875664095,0.6828,3768.2,3768.1,4.12897377]
[1753875664250,0.1328,3768.5,3768.3,2.65369839]
[1753875664450,0.55,3768.4,3768.2,0.8921]
[1753875664758,0.55,3768.4,3768.3,0.8921]
[1753875666401,3.23014698,3768.4,3768.3,0.4627]
[1753875666700,3.2036461,3768.4,3768.3,0.4627]
[1753875667091,7.3276461,3768.4,3768.3,0.4627]
[1753875667292,10.3276461,3768.4,3768.3,0.4627]
[1753875667690,11.71636715,3768.4,3768.3,0.4627]
[1753875667995,6.20378695,3768.2,3768.1,0.04]
[1753875668301,10.46058695,3768.2,3768.1,0.04]
[1753875668678,10.46058695,3768.2,3768.1,0.5027]
[1753875669009,10.46058695,3768.2,3768.1,0.9321]
[1753875669176,7.8068,3768.2,3768.1,0.9321]
[1753875669707,3.1328,3768.2,3768.1,0.9321]
[1753875669892,0.1328,3768.2,3768.1,4.39125738]
[1753875670097,0.1328,3768.4,3768.1,2.76160852]
[1753875670314,0.1328,3768.4,3768.2,0.8921]
[1753875670611,0.55,3768.3,3768.2,0.8921]
[1753875670812,0.55,3768.3,3768.2,0.4627]
[1753875670970,0.55,3768.3,3768.2,0.8921]
[1753875671733,0.57650088,3768.3,3768.1,0.04]
[1753875672004,10.61333704,3768.2,3768.1,0.04]
[1753875672208,10.61333704,3768.2,3768.1,0.5027]
[1753875673214,10.61333704,3768.2,3768.1,0.04]
[1753875673529,11.08043704,3768.2,3768.1,0.04]
[1753875674919,11.56643704,3768.2,3768.1,0.04]
[1753875675423,0.55,3767.2,3767.1,0.04]
[1753875675582,6.33729139,3767.2,3767.1,0.04]
[1753875677118,10.46029139,3767.2,3767.1,0.04]
[1753875680304,10.92739139,3767.2,3767.1,0.04]
[1753875680500,11.70739139,3767.2,3767.1,0.04]
[1753875681071,12.19339139,3767.2,3767.1,0.04]
[1753875681201,13.69795034,3767.2,3767.1,0.04]
[1753875681663,12.74485034,3767.2,3767.1,0.04]
[1753875682138,12.74485034,3767.2,3767.1,0.5027]
[1753875682139,11.96485034,3767.2,3767.1,0.5027]
[1753875683517,9.31035895,3767.2,3767.1,0.5027]
[1753875683733,7.8058,3767.2,3767.1,0.9321]
[1753875683939,3.1328,3767.2,3767.1,0.9321]
[1753875684256,0.1328,3767.4,3767.3,0.7667]
[1753875684451,2.6535149,3768.6,3767.5,2.65428002]
[1753875684601,0.1328,3767.9,3767.6,2.65420957]
[1753875684799,0.55,3767.8,3767.7,3.54623912]
[1753875685024,0.55,3767.8,3767.7,0.8921]
[1753875685329,0.1328,3767.9,3767.7,0.8921]
[1753875685524,0.6828,3767.9,3767.8,0.4627]
[1753875685772,0.55,3767.8,3767.3,0.7667]
[1753875686072,3.55,3767.8,3767.5,0.4627]
[1753875686252,0.55,3767.4,3767.3,0.4627]
[1753875686454,0.55,3767.4,3767.3,0.8921]
[1753875687381,0.55,3767.4,3767.3,3.54652093]
[1753875687966,3.1328,3768.0,3767.4,0.7629]
[1753875688154,0.55,3767.9,3767.5,2.65426418]
[1753875688334,0.55,3767.9,3767.5,3.21646418]
[1753875688535,0.55,3767.9,3767.6,0.4627]
[1753875688746,0.55,3767.9,3767.5,3.21646418]
[1753875688747,0.55,3767.9,3767.4,0.7629]
[1753875688947,0.001,3768.1,3767.7,0.4627]
[1753875688948,0.6828,3767.8,3767.7,0.4627]
[1753875689987,0.6828,3767.8,3767.7,0.8921]
[1753875690881,0.55,3767.8,3767.7,0.8921]
[1753875691288,0.55,3767.8,3767.7,0.4627]
[1753875691581,0.55,3767.7,3767.3,0.493]
[1753875691751,0.55,3767.5,3767.1,4.9703]
[1753875691953,0.55,3767.5,3767.2,0.9384]
[1753875692154,0.55,3767.5,3767.3,0.493]
[1753875692350,0.55,3767.7,3767.1,0.8483]
[1753875692569,0.55,3767.2,3767.1,0.042]
[1753875693085,0.55,3767.2,3767.1,0.535]
[1753875693290,0.55,3767.2,3767.1,0.042]
[1753875693496,0.55,3767.2,3767.1,0.535]
[1753875694575,0.55,3767.2,3767.1,0.042]
[1753875694803,6.83821233,3767.2,3767.1,0.042]
[1753875695091,7.76031233,3767.2,3767.1,0.042]
[1753875695290,7.27961233,3767.2,3767.1,0.042]
[1753875696666,6.83821233,3767.2,3767.1,0.042]
[1753875699017,3.55,3767.2,3767.1,0.535]
[1753875699162,3.0,3767.2,3767.1,4.18170878]
[1753875699488,0.1328,3767.7,3767.3,2.65442093]
[1753875699660,0.55,3767.6,3767.4,4.13970878]
[1753875699859,0.1328,3767.7,3767.5,0.9384]
[1753875700369,0.1328,3767.7,3767.6,0.493]
[1753875700578,0.6828,3767.7,3767.6,0.9384]
[1753875701763,0.6828,3767.7,3767.6,0.493]
[1753875702306,0.55,3767.6,3767.1,0.042]
[1753875702506,3.55,3767.2,3767.1,0.042]
[1753875702965,6.23099227,3767.2,3767.1,0.042]
[1753875703167,6.64589139,3767.2,3767.1,0.042]
[1753875703695,6.20449139,3767.2,3767.1,0.042]
[1753875705282,11.72897139,3767.2,3767.1,0.042]
[1753875705605,12.94257139,3767.2,3767.1,0.042]
[1753875705783,13.42327139,3767.2,3767.1,0.042]
[1753875708191,13.91755071,3767.2,3767.1,0.042]
[1753875708598,13.91755071,3767.2,3767.1,0.002]
[1753875708795,7.00957328,3766.8,3766.7,0.1]
[1753875708982,11.26237328,3766.8,3766.7,0.1]
[1753875709187,12.43031426,3766.8,3766.7,0.1]
[1753875709384,12.18447328,3766.8,3766.7,0.1]
[1753875709946,12.67852003,3766.8,3766.7,0.1]
[1753875710122,14.28100371,3766.8,3766.7,0.1]
[1753875711105,8.48990003,3766.8,3766.7,0.1]
[1753875711311,8.48990003,3766.8,3766.7,1.0384]
[1753875711312,7.12,3766.8,3766.7,1.0384]
[1753875711503,7.67,3766.8,3766.7,1.0384]
[1753875711705,10.32477328,3766.8,3766.7,0.593]
[1753875712212,7.67,3766.8,3766.7,0.593]
[1753875712384,7.67,3766.8,3766.7,1.0384]
[1753875712591,3.0,3766.8,3766.7,1.0384]
[1753875712825,4.12,3766.9,3766.7,2.16579969]
[1753875712999,0.55,3766.8,3766.7,0.8552]
[1753875713201,4.12,3767.0,3766.7,0.1]
[1753875713402,3.0,3766.9,3766.7,0.1]
[1753875713592,0.55,3766.8,3766.7,0.1]
[1753875713797,3.20477328,3766.8,3766.7,0.1]
[1753875714021,0.55,3766.8,3766.7,0.1]
[1753875714407,3.23127416,3766.8,3766.7,0.1]
[1753875714692,4.70780158,3766.8,3766.7,0.1]
[1753875715225,4.6813007,3766.8,3766.7,0.1]
[1753875715525,5.1620007,3766.8,3766.7,0.1]
[1753875716623,4.6813007,3766.8,3766.7,0.1]
[1753875716833,5.1620007,3766.8,3766.7,0.1]
[1753875718233,12.2820007,3766.8,3766.7,0.1]
[1753875718692,13.53609234,3766.8,3766.7,0.1]
[1753875719093,13.53609234,3766.8,3766.7,1e-08]
[1753875721432,13.66889234,3766.8,3766.7,1e-08]
[1753875721631,9.06819234,3766.8,3766.7,1e-08]
[1753875721817,9.09069234,3766.8,3766.7,1e-08]
[1753875722027,13.21069234,3766.8,3766.7,1e-08]
[1753875724235,12.74679234,3766.8,3766.7,1e-08]
[1753875724441,8.62679234,3766.8,3766.7,1e-08]
[1753875724743,7.31639234,3766.8,3766.7,0.49670001]
[1753875724974,2.78757328,3766.8,3766.7,0.93840001]
[1753875725099,6.90757328,3766.8,3766.7,0.93840001]
[1753875725294,7.45757328,3766.8,3766.7,0.93840001]
[1753875725642,10.45757328,3766.8,3766.7,0.93840001]
[1753875726512,10.45757328,3766.8,3766.7,0.49670001]
[1753875726705,11.76879491,3766.8,3766.7,0.49670001]
[1753875728601,11.76879491,3766.8,3766.7,0.93840001]
[1753875729113,11.76879491,3766.8,3766.7,0.49670001]
[1753875731527,11.76879491,3766.8,3766.7,1e-08]
[1753875731528,12.99889491,3766.8,3766.7,1e-08]
[1753875731724,12.53499491,3766.8,3766.7,1e-08]
[1753875732363,13.02943767,3766.8,3766.7,1e-08]
[1753875732523,13.49333767,3766.8,3766.7,1e-08]
[1753875732724,13.029436,3766.8,3766.7,1e-08]
[1753875733475,12.262236,3766.8,3766.7,1e-08]
[1753875733676,12.262236,3766.8,3766.7,0.49670001]
[1753875733964,12.262236,3766.8,3766.7,1e-08]
[1753875734556,12.26238098,3766.8,3766.7,1e-08]
[1753875735672,7.02154376,3766.7,3766.6,1e-08]
[1753875735830,9.22056319,3766.7,3766.6,1e-08]
[1753875736038,10.16306319,3766.7,3766.6,1e-08]
[1753875738654,6.20498473,3766.5,3766.4,0.002]
[1753875738854,16.51072088,3766.5,3766.4,1e-08]
[1753875739054,17.95474251,3766.5,3766.4,1e-08]
[1753875739354,18.89724251,3766.5,3766.4,1e-08]
[1753875740377,18.89734273,3766.5,3766.4,1e-08]
[1753875741041,14.77834273,3766.5,3766.4,1e-08]
[1753875741310,13.09039265,3766.5,3766.4,0.49670001]
[1753875741580,4.74548629,3766.5,3766.4,0.93840001]
[1753875741945,10.95047102,3766.5,3766.4,0.93840001]
[1753875742288,7.40047102,3766.5,3766.4,0.49670001]
[1753875742593,10.95047102,3766.5,3766.4,0.49670001]
[1753875742738,12.31100837,3766.5,3766.4,0.49670001]
[1753875743180,12.31100837,3766.5,3766.4,1e-08]
[1753875743384,12.31100837,3766.5,3766.4,0.49670001]
[1753875743990,9.65602364,3766.5,3766.4,0.49670001]
[1753875744288,12.31100837,3766.5,3766.4,0.93840001]
[1753875744963,11.81632208,3766.5,3766.4,0.93840001]
[1753875747308,11.81632208,3766.5,3766.4,0.49670001]
[1753875750103,13.04102208,3766.5,3766.4,1e-08]
[1753875750258,14.01494226,3766.5,3766.4,1e-08]
[1753875750691,13.53635571,3766.5,3766.4,1e-08]
[1753875753564,13.53535571,3766.5,3766.4,1e-08]
[1753875753970,13.28875061,3766.5,3766.4,1e-08]
[1753875754170,13.5352476,3766.5,3766.4,1e-08]
[1753875756410,13.0713476,3766.5,3766.4,1e-08]
[1753875756718,7.6435476,3766.5,3766.4,0.91230001]
[1753875756873,7.40001025,3766.5,3766.4,0.91230001]
[1753875757272,10.40001025,3766.5,3766.4,0.91230001]
[1753875757578,6.83301025,3766.5,3766.4,0.91230001]
[1753875757784,4.74502552,3766.5,3766.4,0.91230001]
[1753875757968,4.74502552,3766.5,3766.4,1.90512001]
[1753875757969,0.62802552,3766.5,3766.4,1.90512001]
[1753875758174,0.49522552,3766.5,3766.4,4.58672578]
[1753875758416,0.1328,3766.9,3766.7,2.6547841]
[1753875758570,0.24877893,3767.0,3766.9,2.6547028]
[1753875758765,0.24877893,3767.0,3766.9,1.6966]
[1753875759017,3.49522364,3767.0,3766.9,1.6966]
[1753875759610,4.04522364,3767.0,3766.9,1.6966]
[1753875760503,6.69985597,3767.0,3766.9,1.6966]
[1753875760868,6.69985597,3767.0,3766.9,0.4631]
[1753875761494,6.20484376,3766.7,3766.6,1.2504]
[1753875761698,3.55,3766.5,3766.4,1e-08]
[1753875761870,7.7988,3766.5,3766.4,0.44920001]
[1753875762283,7.7988,3766.5,3766.4,0.91230001]
[1753875766284,3.6828,3766.5,3766.4,0.91230001]
[1753875766493,7.7978,3766.5,3766.4,0.91230001]
[1753875766691,3.6828,3766.5,3766.4,0.91230001]
[1753875766902,7.665,3766.5,3766.4,1.09563001]
[1753875767286,7.665,3766.5,3766.4,0.91230001]
[1753875767939,7.665,3766.5,3766.4,3.56735523]
[1753875767940,0.55,3766.5,3766.4,3.56735523]
[1753875768535,0.001,3767.1,3766.8,2.65472812]
[1753875768835,0.55,3766.9,3766.8,0.1328]
[1753875769135,4.115,3767.0,3766.8,5.12946376]
[1753875769334,0.001,3767.1,3766.9,0.9123]
[1753875769540,4.114,3767.0,3766.9,0.9123]
[1753875769687,7.114,3767.0,3766.9,0.9123]
[1753875773327,7.114,3767.0,3766.9,3.5670028]
[1753875773497,7.114,3767.0,3766.9,1.69071777]
[1753875773828,7.114,3767.0,3766.9,4.34542057]